fUST/lending_fUST_20260104
["ID","MTS","AMOUNT","RATE_DAILY","PERIOD"]
[400408318,1767522817934,1127.2,9.199e-05,2]
[400408319,1767522818331,569.32001434,9.567e-05,2]
[400408320,1767522818355,783.31998566,9.567e-05,2]
[400408321,1767522818721,1578.08,9.935e-05,2]
[400408322,1767522819134,1803.52,0.00010303,2]
[400408323,1767522819536,2028.97,0.00010671,2]
[400408324,1767522820447,2254.41,0.00011039,2]
[400408326,1767522841386,1551.71001434,0.00011186,2]
[400408327,1767522841408,928.71665601,0.00011186,2]
[400408329,1767522892699,210.39,8.094e-05,2]
[400408330,1767522893104,315.58,8.462e-05,2]
[400408331,1767522893604,420.78,8.83e-05,2]
[400408332,1767522893907,525.97,9.198e-05,2]
[400408333,1767522894294,631.16,9.566e-05,2]
[400408334,1767522894776,736.36,9.934e-05,2]
[400408335,1767522895183,841.55,0.00010302,2]
[400408336,1767522895595,946.75,0.0001067,2]
[400408337,1767522896015,1051.94,0.00011038,2]
[400408341,1767522911392,667.86276508,0.00010909,2]
[400408343,1767522939289,2722.95057891,0.00011186,2]
[400408344,1767522939313,2277.04942109,0.00011186,2]
[400408346,1767522960553,7448.4698315,0.00010406,2]
[400408348,1767522963721,274.49074741,0.00011186,2]
[400408349,1767522963747,4725.50925259,0.00011186,2]
[400408350,1767522968007,164.48,9.966e-05,2]
[400408351,1767522968577,197.38,0.00010364,2]
[400408352,1767522968883,230.28,0.00010763,2]
[400408353,1767522969306,263.18,0.00011162,2]
[400408354,1767522986892,2843.71309567,0.00011186,2]
[400408356,1767523038243,154.08,9.565e-05,2]
[400408357,1767523038646,176.09,9.92e-05,2]
[400408358,1767523039055,198.1,0.00010274,2]
[400408359,1767523039460,220.11,0.00010628,2]
[400408361,1767523079672,324.81,9.99e-05,2]
[400408362,1767523079929,324.81,9.99e-05,2]
[400408366,1767523105483,157.82,9.577e-05,2]
[400408367,1767523105565,19.64765174,9.932e-05,2]
[400408368,1767523105590,160.72234826,9.932e-05,2]
[400408369,1767523105967,202.91,0.00010287,2]
[400408370,1767523106383,225.46,0.00010641,2]
[400408371,1767523114543,309.21773913,0.0001118,2]
[400408372,1767523197959,60248.38273602,0.00030137,120]
[400408378,1767523237632,2662.7717496,0.00010344,2]
[400408394,1767523380770,999.0,0.00010959,2]
[400408398,1767523442666,300.0,0.00011321,2]
[400408399,1767523458510,9700.01,0.00011322,2]
[400408400,1767523488538,5000.0,0.00011191,2]
[400408403,1767523504496,5000.0,0.00011191,2]
[400408404,1767523512744,0.01,0.00011191,2]
[400408405,1767523512768,4381.66686593,0.00011191,2]
[400408406,1767523529204,1190.40956267,0.00011191,2]
[400408407,1767523560044,4427.9335714,0.00011191,2]
[400408408,1767523560068,572.0664286,0.00011191,2]
[400408412,1767523583132,5000.0,0.00011191,2]
[400408413,1767523590892,4427.9435714,0.00010323,2]
[400408414,1767523590916,10000.01,0.00010323,2]
[400408415,1767523590943,10000.01,0.00010323,2]
[400408416,1767523590966,6531.5930139,0.00010323,2]
[400408417,1767523606207,3468.4169861,0.00011191,2]
[400408418,1767523606230,1531.5830139,0.00011191,2]
[400408419,1767523629736,5000.0,0.00011191,2]
[400408425,1767523653407,3468.4269861,0.00011191,2]
[400408426,1767523653436,1531.5730139,0.00011191,2]
[400408430,1767523677404,5000.0,0.00011191,2]
[400408432,1767523699663,153.0,8.3e-07,2]
[400408433,1767523700983,153.0,8.3e-07,2]
[400408434,1767523701045,3162.4369861,0.00011191,2]
[400408435,1767523701069,474.53753446,0.00011191,2]
[400408436,1767523702045,153.0,8.3e-07,2]
[400408447,1767523703329,153.0,8.3e-07,2]
[400408449,1767523732830,-10000.0,0.00011223,2]
[400408450,1767523735184,-10000.0,0.00011223,2]
[400408451,1767523736687,-10000.0,0.00011223,2]
[400408452,1767523738063,-10000.0,0.00011223,2]
[400408453,1767523739230,-10000.0,0.00011223,2]
[400408455,1767523744161,-300.0,0.00011222,2]
[400408456,1767523744185,-500.0,0.00011222,2]
[400408457,1767523744206,-201.07944769,0.00011222,2]
[400408458,1767523744228,-501.23493955,0.00011222,2]
[400408459,1767523744251,-500.0,0.00011222,2]
[400408460,1767523744274,-500.0,0.00011222,2]
[400408461,1767523744298,-500.0,0.00011222,2]
[400408462,1767523744321,-500.0,0.00011222,2]
[400408463,1767523744343,-500.0,0.00011222,2]
[400408464,1767523744366,-500.0,0.00011222,2]
[400408465,1767523744389,-351.12169449,0.00011222,2]
[400408466,1767523744411,-500.0,0.00011222,2]
[400408467,1767523744433,-500.0,0.00011222,2]
[400408468,1767523744455,-500.0,0.00011222,2]
[400408469,1767523744477,-500.0,0.00011222,2]
[400408470,1767523744498,-500.0,0.00011222,2]
[400408471,1767523744522,-500.0,0.00011222,2]
[400408472,1767523744544,-500.0,0.00011222,2]
[400408473,1767523744567,-500.0,0.00011222,2]
[400408474,1767523744588,-500.0,0.00011222,2]
[400408475,1767523744609,-500.0,0.00011222,2]
[400408476,1767523744632,-146.56391827,0.00011222,2]
[400408483,1767523785399,-353.43608173,0.00011222,2]
[400408484,1767523785438,-500.0,0.00011222,2]
[400408485,1767523785461,-500.0,0.00011222,2]
[400408486,1767523785481,-491.7078274,0.00011222,2]
[400408487,1767523785502,-500.0,0.00011222,2]
[400408488,1767523785525,-500.0,0.00011222,2]
[400408489,1767523785547,-500.0,0.00011222,2]
[400408490,1767523785567,-500.0,0.00011222,2]
[400408491,1767523785588,-425.05379043,0.00011222,2]
[400408492,1767523785610,-500.0,0.00011222,2]
[400408493,1767523785631,-500.0,0.00011222,2]
[400408494,1767523785653,-270.9042183,0.00011222,2]
[400408495,1767523785674,-639.34496359,0.00011222,2]
[400408496,1767523785695,-500.0,0.00011222,2]
[400408497,1767523785716,-500.0,0.00011222,2]
[400408498,1767523785736,-500.0,0.00011222,2]
[400408499,1767523785757,-393.44963592,0.00011222,2]
[400408500,1767523785778,-500.0,0.00011222,2]
[400408501,1767523785798,-500.0,0.00011222,2]
[400408502,1767523785818,-500.0,0.00011222,2]
[400408503,1767523785839,-426.10348263,0.00011222,2]
[400408504,1767523787692,-73.89651737,0.00011222,2]
[400408505,1767523787715,-500.0,0.00011222,2]
[400408506,1767523787740,-307.87824648,0.00011222,2]
[400408507,1767523787761,-500.0,0.00011222,2]
[400408508,1767523787781,-500.0,0.00011222,2]
[400408509,1767523787802,-500.0,0.00011222,2]
[400408510,1767523787828,-7618.22523615,0.00011223,2]
[400408511,1767523789649,-10000.0,0.00011223,2]
[400408512,1767523791672,-10000.0,0.00011223,2]
[400408516,1767523807212,-300.0,0.00011222,2]
[400408517,1767523807234,-194.0,0.00011222,2]
[400408518,1767523807256,-506.0,0.00011223,2]
[400408519,1767523809455,-72.0,0.00011223,2]
[400408520,1767523809483,-928.0,0.00011223,2]
[400408538,1767523833085,-500.0,0.00011222,2]
[400408539,1767523833106,-207.38642038,0.00011222,2]
[400408540,1767523833127,-500.0,0.00011222,2]
[400408541,1767523833147,-500.82274639,0.00011222,2]
[400408542,1767523833170,-217.72645165,0.00011222,2]
[400408543,1767523833192,-500.0,0.00011222,2]
[400408544,1767523833218,-7574.06438158,0.00011223,2]
[400408545,1767523838063,-500.0,0.00011222,2]
[400408546,1767523838074,-500.0,0.00011222,2]
[400408547,1767523838086,-500.0,0.00011222,2]
[400408548,1767523838099,-500.0,0.00011222,2]
[400408549,1767523838109,-500.0,0.00011222,2]
[400408551,1767523838120,-500.0,0.00011222,2]
[400408552,1767523838131,-500.0,0.00011222,2]
[400408554,1767523838141,-335.0,0.00011222,2]
[400408556,1767523838151,-500.0,0.00011222,2]
[400408557,1767523838160,-113.19331136,0.00011222,2]
[400408558,1767523838173,-386.80668864,0.00011222,2]
[400408559,1767523838184,-170.86309561,0.00011222,2]
[400408636,1767523841091,-329.13690439,0.00011222,2]
[400408637,1767523841101,-500.0,0.00011222,2]
[400408638,1767523841117,-500.0,0.00011222,2]
[400408639,1767523841126,-500.0,0.00011222,2]
[400408640,1767523841137,-171.81098812,0.00011222,2]
[400408641,1767523841146,-500.0,0.00011222,2]
[400408642,1767523841157,-500.0,0.00011222,2]
[400408643,1767523841166,-333.3753483,0.00011222,2]
[400408644,1767523841176,-500.0,0.00011222,2]
[400408645,1767523841185,-479.65021196,0.00011222,2]
[400408646,1767523841197,-504.72158561,0.00011223,2]
[400408647,1767523841209,-17951.2986,0.00011223,2]
[400408682,1767523846026,-17957.80962511,0.00011223,2]
[400408683,1767523846857,-958.9895567,0.00011223,2]
[400408699,1767523894277,177.1,9.519e-05,2]
[400408700,1767523894744,221.38,9.915e-05,2]
[400408701,1767523895261,265.65,0.00010312,2]
[400408702,1767523895641,309.93,0.00010709,2]
[400408703,1767523896057,354.2,0.00011105,2]
[400408707,1767523965797,164.22,0.0001005,2]
[400408708,1767523966237,191.59,0.00010437,2]
[400408709,1767523966655,218.96,0.00010823,2]
[400408713,1767524003117,-246.33,0.0001121,2]
[400408714,1767524003152,-335.28782748,0.00011216,2]
[400408715,1767524003180,-300.0,0.00011222,2]
[400408716,1767524003214,-300.0,0.00011222,2]
[400408717,1767524003243,-1200.0,0.00011222,2]
[400408723,1767524042355,300.0,0.00011222,2]
[400408724,1767524043777,300.0,0.00011222,2]
[400408726,1767524064331,500.0,0.00011222,2]
[400408727,1767524064360,500.0,0.00011222,2]
[400408728,1767524064397,339.82585298,0.00011222,2]
[400408729,1767524070584,500.0,0.00011222,2]
[400408730,1767524070633,163.81610707,0.00011222,2]
[400408734,1767524073267,2633.13238499,0.00011058,2]
[400408736,1767524076683,-374.93897584,0.00011058,2]
[400408737,1767524078282,-222.83310953,0.00011058,2]
[400408738,1767524093365,-45.44041834,0.00011058,2]
[400408739,1767524100814,171.7,0.00010722,2]
[400408743,1767524110223,-196.22,0.00011119,2]
[400408744,1767524152242,274.33535677,0.00011121,2]
[400408746,1767524169372,158.76,0.00011074,2]
[400408747,1767524183408,-300.0,0.0001122,2]
[400408748,1767524183433,-300.0,0.00011221,2]
[400408749,1767524183456,-300.0,0.00011221,2]
[400408750,1767524183480,-300.0,0.00011221,2]
[400408751,1767524183505,-1200.0,0.00011221,2]
[400408752,1767524183528,-2874.8402383,0.00011222,2]
[400408753,1767524183551,-381.85152458,0.00011222,2]
[400408754,1767524183575,-500.0,0.00011222,2]
[400408755,1767524183601,-500.0,0.00011222,2]
[400408756,1767524183626,-500.0,0.00011222,2]
[400408757,1767524183653,-500.0,0.00011222,2]
[400408758,1767524183677,-500.0,0.00011222,2]
[400408759,1767524183701,-500.0,0.00011222,2]
[400408760,1767524183725,-500.0,0.00011222,2]
[400408761,1767524183751,-500.0,0.00011222,2]
[400408762,1767524183776,-343.30823712,0.00011222,2]
[400408792,1767524436152,-267.0,0.00011219,2]
[400408793,1767524436176,-33.0,0.00011219,2]
[400408804,1767524491150,250.0,0.00010411,2]
[400408817,1767524501360,-300.0,0.00011218,2]
[400408818,1767524501391,-578.0,0.00011219,2]
[400408819,1767524501422,-1200.0,0.00011219,2]
[400408820,1767524501458,-500.0,0.00011219,2]
[400408821,1767524501490,-500.0,0.00011219,2]
[400408822,1767524501520,-500.0,0.00011219,2]
[400408823,1767524501552,-500.0,0.00011219,2]
[400408824,1767524501581,-267.2960672,0.00011219,2]
[400408825,1767524501614,-500.0,0.00011219,2]
[400408826,1767524502029,-500.0,0.00011219,2]
[400408827,1767524502058,-414.65566263,0.00011219,2]
[400408828,1767524502090,-500.0,0.00011219,2]
[400408829,1767524502120,-500.0,0.00011219,2]
[400408830,1767524502149,-500.0,0.00011219,2]
[400408831,1767524502179,-500.0,0.00011219,2]
[400408832,1767524502213,-500.0,0.00011219,2]
[400408833,1767524502245,-500.0,0.00011219,2]
[400408834,1767524502279,-500.0,0.00011219,2]
[400408835,1767524502310,-500.0,0.00011219,2]
[400408836,1767524502353,-500.0,0.00011219,2]
[400408837,1767524502384,-500.0,0.00011219,2]
[400408838,1767524502434,-500.0,0.00011219,2]
[400408839,1767524502468,-500.0,0.00011219,2]
[400408840,1767524502502,-500.0,0.00011219,2]
[400408841,1767524502532,-425.82534972,0.00011219,2]
[400408842,1767524502562,-389.83129155,0.00011219,2]
[400408843,1767524502595,-500.0,0.00011219,2]
[400408844,1767524502628,-213.85380904,0.00011219,2]
[400408845,1767524502660,-261.23574383,0.00011219,2]
[400408846,1767524502692,-500.0,0.00011219,2]
[400408847,1767524510481,-500.0,0.00011219,2]
[400408848,1767524510519,-500.0,0.00011219,2]
[400408849,1767524510548,-500.0,0.00011219,2]
[400408850,1767524510575,-500.0,0.00011219,2]
[400408851,1767524510604,-500.0,0.00011219,2]
[400408852,1767524510634,-500.0,0.00011219,2]
[400408853,1767524510662,-500.0,0.00011219,2]
[400408854,1767524510692,-500.0,0.00011219,2]
[400408855,1767524510720,-500.0,0.00011219,2]
[400408856,1767524510750,-240.44439339,0.00011219,2]
[400408857,1767524510778,-19.12121322,0.00011219,2]
[400408858,1767524520228,-480.87878678,0.00011219,2]
[400408859,1767524520259,-500.0,0.00011219,2]
[400408860,1767524520292,-500.0,0.00011219,2]
[400408861,1767524520322,-500.0,0.00011219,2]
[400408862,1767524520352,-373.81908131,0.00011219,2]
[400408863,1767524520382,-342.96226815,0.00011219,2]
[400408864,1767524520413,-500.0,0.00011219,2]
[400408865,1767524520444,-500.0,0.00011219,2]
[400408866,1767524520474,-500.0,0.00011219,2]
[400408867,1767524520504,-500.0,0.00011219,2]
[400408868,1767524520538,-104.68972752,0.00011219,2]
[400408870,1767524522192,427.49717238,0.0001103,2]
[400408875,1767524554715,10000.0,0.00010288,2]
[400408876,1767524566544,0.01,0.0001,2]
[400408877,1767524566567,151.17,0.0001,2]
[400408879,1767524644639,207.15357246,0.0001097,2]
[400408882,1767524707497,2480.95502995,0.00010985,2]
[400408884,1767524735399,7160.73139759,0.0001112,2]
[400408885,1767524735429,10000.01,0.0001112,2]
[400408886,1767524735458,10000.01,0.0001112,2]
[400408887,1767524735487,10000.01,0.0001112,2]
[400408888,1767524735515,10000.01,0.0001112,2]
[400408889,1767524735544,10000.01,0.0001112,2]
[400408890,1767524735574,10000.01,0.0001112,2]
[400408891,1767524735601,10000.01,0.0001112,2]
[400408892,1767524735628,10000.01,0.0001112,2]
[400408893,1767524735654,10000.01,0.0001112,2]
[400408894,1767524736042,-271.60931193,0.0001112,2]
[400408895,1767524741284,-187.23850627,0.0001112,2]
[400408896,1767524742963,1253.8193795,0.00010264,2]
[400408897,1767524743852,-353.95222773,0.0001112,2]
[400408898,1767524746606,-249.5425675,0.0001112,2]
[400408899,1767524749306,-189.25028351,0.0001112,2]
[400408900,1767524751846,-225.44714899,0.0001112,2]
[400408901,1767524754451,-343.50205871,0.0001112,2]
[400408902,1767524756187,-492.92788734,0.0001112,2]
[400408903,1767524758609,-220.39032111,0.0001112,2]
[400408904,1767524758735,-10000.01,0.0001112,2]
[400408905,1767524758935,-10000.01,0.0001112,2]
[400408906,1767524759119,-10000.01,0.0001112,2]
[400408907,1767524759353,-10000.01,0.0001112,2]
[400408908,1767524760250,-217.93211266,0.0001112,2]
[400408909,1767524762885,-300.0,0.00011119,2]
[400408910,1767524762912,-118.13203878,0.0001112,2]
[400408912,1767524764404,-261.85258797,0.00011119,2]
[400408913,1767524765903,-38.14741203,0.00011119,2]
[400408914,1767524765971,-9923.71517594,0.0001112,2]
[400408915,1767524766003,-10000.01,0.0001112,2]
[400408916,1767524766093,-10000.01,0.0001112,2]
[400408917,1767524766520,-10000.01,0.0001112,2]
[400408919,1767524769638,-286.91090955,0.0001112,2]
[400408920,1767524772274,679.98462675,0.0001103,2]
[400408921,1767524773030,-406.17632996,0.0001112,2]
[400408922,1767524774594,150.13,9.238e-05,2]
[400408924,1767524775002,200.17,9.639e-05,2]
[400408925,1767524775089,-242.6933364,0.0001112,2]
[400408926,1767524775402,250.21,0.00010041,2]
[400408927,1767524775796,300.26,0.00010442,2]
[400408928,1767524776227,350.3,0.00010844,2]
[400408929,1767524777059,-500.0,0.0001112,2]
[400408932,1767524779245,-182.13650057,0.0001112,2]
[400408933,1767524780831,-183.26190798,0.0001112,2]
[400408934,1767524782358,-226.16103822,0.0001112,2]
[400408935,1767524784412,-263.58535104,0.0001112,2]
[400408936,1767524785855,-218.62663139,0.0001112,2]
[400408937,1767524788092,2565.86425829,0.0001103,2]
[400408938,1767524790011,-316.73809202,0.0001112,2]
[400408939,1767524793080,-385.26462202,0.00011119,2]
[400408940,1767524794640,-114.73537798,0.00011119,2]
[400408941,1767524794664,-96.75535851,0.00011119,2]
[400408942,1767524795903,5000.0,0.0001103,2]
[400408943,1767524798640,-206.29728108,0.00011119,2]
[400408944,1767524801328,-322.55006422,0.00011119,2]
[400408945,1767524804888,-14.65626003,0.00011119,2]
[400408946,1767524804912,-153.19134439,0.00011119,2]
[400408947,1767524806447,-33.91590265,0.00011119,2]
[400408948,1767524806474,-166.35906524,0.00011119,2]
[400408950,1767524809050,-333.64093476,0.00011119,2]
[400408951,1767524809076,-218.93136199,0.00011119,2]
[400408952,1767524813373,-300.0,0.00011119,2]
[400408953,1767524815961,-598.66175607,0.00011119,2]
[400408954,1767524819223,5000.0,0.00011039,2]
[400408956,1767524842509,5000.0,0.00011039,2]
[400408957,1767524844938,0.01,8.323e-05,2]
[400408958,1767524844960,253.47,8.323e-05,2]
[400408959,1767524845355,506.95,8.72e-05,2]
[400408960,1767524845777,760.43,9.116e-05,2]
[400408961,1767524846181,1013.9,9.512e-05,2]
[400408962,1767524846584,1267.38,9.909e-05,2]
[400408963,1767524846991,1520.85,0.00010305,2]
[400408964,1767524847404,1774.33,0.00010701,2]
[400408965,1767524865492,2902.7,0.00011039,2]
[400408966,1767524865514,2097.3,0.00011039,2]
[400408967,1767524871033,-350.95004616,0.00011098,2]
[400408968,1767524873500,-273.89332638,0.00011098,2]
[400408969,1767524878174,-392.3009956,0.00011098,2]
[400408970,1767524879994,-230.26790519,0.00011098,2]
[400408972,1767524882488,-184.61968079,0.00011098,2]
[400408973,1767524885223,-353.27021086,0.00011098,2]
[400408974,1767524885664,151.58,9.99e-05,2]
[400408975,1767524885912,151.58,9.99e-05,2]
[400408976,1767524886248,151.59,9.99e-05,2]
[400408987,1767524888760,-242.49783502,0.00011098,2]
[400408988,1767524888784,-123.60819994,0.00011118,2]
[400408989,1767524889134,5000.0,0.00011039,2]
[400408990,1767524890781,-176.39180006,0.00011118,2]
[400408991,1767524890804,-123.60819994,0.00011119,2]
[400408992,1767524893380,-277.39278668,0.00011119,2]
[400408993,1767524894868,-339.19355815,0.00011119,2]
[400408994,1767524897460,-190.59383662,0.00011118,2]
[400408995,1767524901006,-250.4574325,0.00011118,2]
[400408996,1767524903176,-299.33877867,0.00011118,2]
[400408997,1767524905323,-459.60995221,0.00011118,2]
[400408998,1767524905348,-57.10586111,0.00011119,2]
[400408999,1767524913106,2447.96,0.00011039,2]
[400409000,1767524913130,2552.04,0.00011039,2]
[400409002,1767524922888,200.28,7.525e-05,2]
[400409003,1767524923300,400.56,7.883e-05,2]
[400409004,1767524923696,600.84,8.241e-05,2]
[400409005,1767524924089,801.12,8.6e-05,2]
[400409006,1767524924506,1001.4,8.958e-05,2]
[400409007,1767524924922,1201.68,9.316e-05,2]
[400409008,1767524925323,1401.96,9.675e-05,2]
[400409009,1767524925719,1602.24,0.00010033,2]
[400409010,1767524926171,237.89,0.00010391,2]
[400409011,1767524926207,1564.63,0.00010391,2]
[400409012,1767524926602,2002.8,0.0001075,2]
[400409013,1767524928746,265.44,0.0001,2]
[400409014,1767524930563,265.44,0.000102,2]
[400409015,1767524932619,265.44,0.000104,2]
[400409016,1767524934504,265.44,0.000106,2]
[400409017,1767524936404,265.44,0.000108,2]
[400409018,1767524936797,5000.0,0.00011039,2]
[400409019,1767524938337,105.38,0.00011,2]
[400409020,1767524938361,160.06,0.00011,2]
[400409022,1767524960917,5000.0,0.00011039,2]
[400409023,1767524966520,-300.0,0.00011117,2]
[400409024,1767524983737,5000.0,0.00011117,2]
[400409025,1767524998915,207.39,8.197e-05,2]
[400409026,1767524999308,276.52,8.553e-05,2]
[400409027,1767524999701,345.65,8.91e-05,2]
[400409028,1767525000088,414.78,9.266e-05,2]
[400409029,1767525000498,483.92,9.622e-05,2]
[400409030,1767525000914,553.05,9.979e-05,2]
[400409033,1767525001337,622.18,0.00010335,2]
[400409034,1767525001732,691.31,0.00010691,2]
[400409035,1767525002164,300.0,0.00011117,2]
[400409036,1767525003887,6105.21,0.00011118,2]
[400409037,1767525003908,10000.01,0.00011118,2]
[400409038,1767525003931,10000.01,0.00011118,2]
[400409039,1767525003959,10000.01,0.00011118,2]
[400409040,1767525003982,10000.01,0.00011118,2]
[400409041,1767525004003,3894.75,0.00011118,2]
[400409042,1767525005680,-500.0,0.00011118,2]
[400409043,1767525005710,-500.0,0.00011118,2]
[400409044,1767525005740,-500.0,0.00011118,2]
[400409045,1767525005771,-500.0,0.00011118,2]
[400409046,1767525005800,-500.0,0.00011118,2]
[400409047,1767525005831,-500.0,0.00011118,2]
[400409048,1767525005860,-500.0,0.00011118,2]
[400409049,1767525005891,-500.0,0.00011118,2]
[400409050,1767525005921,-157.43139226,0.00011118,2]
[400409051,1767525005952,-500.0,0.00011118,2]
[400409052,1767525005983,-157.51489816,0.00011118,2]
[400409053,1767525006341,-370.11741916,0.00011118,2]
[400409054,1767525006373,-500.0,0.00011118,2]
[400409055,1767525006408,-500.0,0.00011118,2]
[400409056,1767525006442,-593.16115336,0.00011118,2]
[400409057,1767525006474,-500.0,0.00011118,2]
[400409058,1767525006502,-500.0,0.00011118,2]
[400409059,1767525006638,-500.0,0.00011118,2]
[400409060,1767525006667,-459.1163123,0.00011118,2]
[400409061,1767525006696,-500.0,0.00011118,2]
[400409062,1767525006724,-500.0,0.00011118,2]
[400409063,1767525007558,2852.13062673,0.00011118,2]
[400409064,1767525007682,1200.0,0.00011117,2]
[400409065,1767525023348,-500.0,0.00011118,2]
[400409066,1767525023380,-500.0,0.00011118,2]
[400409067,1767525023468,941.26598202,0.00010698,2]
[400409068,1767525024203,-268.1597608,0.00011118,2]
[400409069,1767525025298,-73.76730448,0.00011118,2]
[400409070,1767525025320,-321.81635649,0.00011118,2]
[400409071,1767525028623,-254.18364351,0.00011118,2]
[400409072,1767525028651,-19.29787059,0.00011118,2]
[400409075,1767525030351,713.71621963,0.00011118,2]
[400409076,1767525030774,-480.70212941,0.00011118,2]
[400409077,1767525030797,-215.11810936,0.00011118,2]
[400409095,1767525034487,-151.0,0.00011119,2]
[400409096,1767525034510,-35.014456,0.00011119,2]
[400409105,1767525038291,-115.985544,0.00011119,2]
[400409106,1767525038301,-151.0,0.00011119,2]
[400409107,1767525038310,-151.0,0.00011119,2]
[400409108,1767525038321,-151.0,0.00011119,2]
[400409109,1767525038331,-151.0,0.00011119,2]
[400409110,1767525038342,-151.0,0.00011119,2]
[400409111,1767525038352,-151.0,0.00011119,2]
[400409112,1767525038362,-151.0,0.00011119,2]
[400409113,1767525038373,-151.0,0.00011119,2]
[400409114,1767525038385,-151.0,0.00011119,2]
[400409115,1767525038399,-151.0,0.00011119,2]
[400409116,1767525038409,-151.0,0.00011119,2]
[400409117,1767525038418,-151.0,0.00011119,2]
[400409118,1767525038428,-151.0,0.00011119,2]
[400409119,1767525038439,-205.9272761,0.00011119,2]
[400409120,1767525038449,-225.2924797,0.00011119,2]
[400409121,1767525038458,-343.6845726,0.00011119,2]
[400409122,1767525038470,-439.90181248,0.00011119,2]
[400409123,1767525038480,-500.0,0.00011119,2]
[400409124,1767525038490,-473.33490877,0.00011119,2]
[400409125,1767525038500,-500.0,0.00011119,2]
[400409126,1767525038510,-500.0,0.00011119,2]
[400409127,1767525038520,-500.0,0.00011119,2]
[400409128,1767525038532,-500.0,0.00011119,2]
[400409129,1767525038542,-500.0,0.00011119,2]
[400409130,1767525038552,-500.0,0.00011119,2]
[400409131,1767525038563,-500.0,0.00011119,2]
[400409132,1767525038573,-500.0,0.00011119,2]
[400409133,1767525038584,-500.0,0.00011119,2]
[400409134,1767525038594,-500.0,0.00011119,2]
[400409135,1767525038604,-500.0,0.00011119,2]
[400409136,1767525038614,-500.0,0.00011119,2]
[400409137,1767525038624,-500.0,0.00011119,2]
[400409138,1767525038634,-500.0,0.00011119,2]
[400409139,1767525038644,-510.80201835,0.00011119,2]
[400409140,1767525038654,-500.0,0.00011119,2]
[400409141,1767525038664,-1000.0,0.0001112,2]
[400409142,1767525038674,-19679.50497911,0.0001112,2]
[400409214,1767525040991,-3e-08,0.0001112,2]
[400409215,1767525041231,-1182.86159524,0.0001112,2]
[400409216,1767525041244,-10691.37850794,0.0001112,2]
[400409217,1767525041255,-3435.90441041,0.0001112,2]
[400409218,1767525041275,-4041.85773979,0.0001112,2]
[400409231,1767525044688,-6770.58491379,0.0001112,2]
[400409233,1767525046852,-291.24006096,0.0001112,2]
[400409234,1767525054084,1155.31620887,0.00011119,2]
[400409235,1767525062350,300.0,0.00011119,2]
[400409236,1767525066581,-8338.10616804,0.0001112,2]
[400409237,1767525066671,-10000.01,0.0001112,2]
[400409238,1767525066750,-10000.01,0.0001112,2]
[400409239,1767525066952,-10000.01,0.0001112,2]
[400409240,1767525067121,-10000.01,0.0001112,2]
[400409241,1767525067259,-10000.01,0.0001112,2]
[400409242,1767525067394,-10000.01,0.0001112,2]
[400409243,1767525067521,-10000.01,0.0001112,2]
[400409244,1767525072568,160.79,9.854e-05,2]
[400409245,1767525072961,187.59,0.00010233,2]
[400409246,1767525073365,214.38,0.00010612,2]